Cogmind - Beta 14 @@@ ROGUE MODE // 2024.08.22 @ 17:02:32 Player: celerysam Result: Destroyed by G-47 Trooper with Particle Gun Performance ------------- Evolutions (2) 1000 Regions Visited (3) 600 Robots Destroyed (7) 35 Value Destroyed (166) 166 Prototype IDs (0) 0 Alien Tech Used (0) 0 Bonus (0) 0 TOTAL SCORE: 1801 Bonus ------- None Cogmind --------- Core Integrity 0/550 Matter 290/300 Energy 57/160 System Corruption 0% Temperature Cool (9) Movement Core (100) Ox1 Location -8/Materials Parts ------- > --- POWER (2) -------- Light Nuclear Core > --- PROPULSION (4) --- (None) > --- UTILITY (3) ------ (None) > --- WEAPON (2) ------- (None) > --- INVENTORY (5) ---- Advanced Treads Advanced Treads Improved Flight Unit Improved Datajack Mining Laser Peak State ------------ > --- POWER ------------ Light Deuterium Engine Light Nuclear Core > --- PROPULSION ------- VTOL Module VTOL Module VTOL Module VTOL Module > --- UTILITY ---------- Small Storage Unit Compact Matter Pod > --- WEAPON ----------- Medium Laser Particle Gun > --- INVENTORY -------- Light Ion Engine Advanced Treads Advanced Treads Advanced Treads Improved Flight Unit Shock Bomb Launcher Improved Datajack Mining Laser [Rating: 23] Favorites ----------- Power Light Ion Engine Engine Light Ion Engine Power Core Light Nuclear Core Propulsion VTOL Module Treads Light Treads Wheel Wheel Flight Unit VTOL Module Utility Small Storage Unit Device Heat Sink Storage Small Storage Unit Weapon Medium Laser Energy Gun Medium Laser Launcher Shock Bomb Launcher Special Weapon Mining Laser Build | -11 -10 -9 -8 ------- Run | Yrd Mat Mat Mat Slots Evolved 4 | . . 2 2 Power 1 | . . . 1 Propulsion 2 | . . 2 . Utility 1 | . . . 1 Weapon . | . . . . Parts Attached 26 | 6 4 6 10 Power 8 | 1 1 1 5 Engine 6 | 1 1 1 3 Core 2 | . . . 2 Reactor . | . . . . Propulsion 8 | 2 2 4 . Treads 2 | . 2 . . Leg . | . . . . Wheel 2 | 2 . . . Hover . | . . . . Flight 4 | . . 4 . Utility 3 | 1 . 1 1 Device 1 | . . . 1 Storage 2 | 1 . 1 . Processor . | . . . . Hackware . | . . . . Protection . | . . . . Artifact . | . . . . Weapon 7 | 2 1 . 4 Energy Gun 5 | 2 1 . 2 Energy Cannon . | . . . . Ballistic Gun . | . . . . Ballistic Cannon . | . . . . Launcher 1 | . . . 1 Special Weapon 1 | . . . 1 Impact Weapon . | . . . . Slashing Weapon . | . . . . Piercing Weapon . | . . . . Special Melee Weapon . | . . . . Unidentified Prototypes . | . . . . Parts Lost 12 | . 1 . 11 Power 2 | . 1 . 1 Propulsion 3 | . . . 3 Utility 3 | . . . 3 Weapon 4 | . . . 4 Highest Loss Streak 11 | . 1 . 11 To Critical Strikes . | . . . . Average Slot Usage (%) 83 | . 85 97 71 Engine 11 | . 14 11 5 Core 1 | . . . 4 Treads 10 | . 16 . . Wheel 7 | . 11 . . Flight 12 | . . 44 27 Storage 15 | . 14 19 17 Energy Gun 23 | . 28 22 14 Peak Build Rating 23 | 6 8 18 23 Average Rating 10 | 3 7 16 15 On Entrance 7 | . 6 7 18 Naked Turns 1 | . . . 1 Heaviest Build 16 | 11 13 14 16 Greatest Support 40 | 20 40 16 16 Greatest Overweight (x) 1 | . . . 1 Average Overweight (x) . | . . . . Largest Inventory Capacity 8 | 8 8 8 8 Average Capacity 7 | 6 8 8 7 Most Carried 8 | 6 8 8 8 Average Carried 7 | 4 7 7 7 Final Capacity 8 | 8 8 8 5 Final Carried 8 | 6 8 8 5 Class Distribution -------------------- 76% | Mutant 23% | Sprinter Dominant Class ---------------- Mutant | -10/Materials Sprinter | -9/Materials Sprinter | -8/Materials Resources | -11 -10 -9 -8 ----------- Run | Yrd Mat Mat Mat Matter Collected 445 | 231 69 93 52 Remotely . | . . . . Salvage Created 195 | . 143 . 52 Parts 17 | . 14 . 3 Haulers Intercepted . | . . . . Recyclers Shooed . | . . . . Parts Field Recycled . | . . . . Retrieved Matter . | . . . . Parts Self-Destructed . | . . . . Prevented . | . . . . Kills | -11 -10 -9 -8 ------- Run | Yrd Mat Mat Mat Combat Hostiles Destroyed 5 | . 4 . 1 Guns 5 | . 4 . 1 Classes Destroyed 5 | . 4 . 1 Tunneler 1 | . 1 . . Watcher 1 | . 1 . . Swarmer 2 | . 2 . . Grunt 2 | . 2 . . Sentry 1 | . . . 1 Best Kill Streak 3 | . 3 . 1 Combat Bots Only 2 | . 2 . 1 Max Kills in Single Turn 1 | . 1 . 1 Gunslinging . | . . . . Exploded . | . . . . Melee . | . . . . Uniques/NPCs Destroyed . | . . . . Combat | -11 -10 -9 -8 -------- Run | Yrd Mat Mat Mat Hostile Shots Fired 115 | . 56 4 55 Missed 28 | . 13 2 13 Damage Taken 1436 | . 405 20 1011 Core 650 | . 83 10 557 Absorbed by Shields . | . . . . Core Remaining (%) 87 | 100 66 97 . Volleys Fired 18 | . 9 . 9 Largest 2 | . 2 . 2 Hottest 115 | . 115 . 115 Shots Fired 31 | . 18 . 13 Gun 29 | . 18 . 11 Cannon . | . . . . Launcher 1 | . . . 1 Special 1 | . . . 1 Kinetic . | . . . . Thermal 30 | . 18 . 12 Explosive . | . . . . Electromagnetic 1 | . . . 1 Robot Hit Streak 13 | . 6 . 13 Robot Miss Streak 2 | . 2 . 2 Penetration Max . | . . . . Secondary Targets . | . . . . Shots Hit Robots 19 | . 11 . 8 Core Hits 10 | . 7 . 3 Critical Kills . | . . . . Critical Parts Destroyed . | . . . . Critical Strikes 3 | . 2 . 1 Burn 3 | . 2 . 1 Melee Attacks . | . . . . Impact . | . . . . Slashing . | . . . . Piercing . | . . . . Sneak Attacks . | . . . . Combat Hostiles . | . . . . Follow-up Attacks . | . . . . Damage Inflicted 315 | . 176 . 139 Guns 301 | . 176 . 125 Cannons . | . . . . Explosions 14 | . . . 14 Melee . | . . . . Ramming . | . . . . Kinetic . | . . . . Thermal 301 | . 176 . 125 Explosive . | . . . . Electromagnetic 14 | . . . 14 Impact . | . . . . Slashing . | . . . . Piercing . | . . . . Highest Corruption . | . . . . Average Corruption . | . . . . Corruption Purged . | . . . . Corruption Blocked . | . . . . Overload Shots . | . . . . Overflow Damage . | . . . . Projectiles . | . . . . Explosions . | . . . . Melee . | . . . . Knockbacks . | . . . . Impact . | . . . . Kinetic . | . . . . Secondary . | . . . . Self-Inflicted Damage 5 | . . . 5 Shots 1 | . . . 1 Rammed . | . . . . Targets Rammed . | . . . . Kicked . | . . . . Crushed . | . . . . Highest Temperature 274 | . 274 7 273 Average Temperature 115 | . 103 5 141 Received Heat Transfer 384 | . 138 12 234 Siege Activations . | . . . . Robots Corrupted . | . . . . Combat Hostiles . | . . . . Parts Fried . | . . . . Impact Corruptions . | . . . . Robots Melted . | . . . . Combat Hostiles . | . . . . Parts Melted 2 | . 2 . . Heat Transferred 1036 | . 629 . 407 Parts Sabotaged . | . . . . Parts Stolen . | . . . . Parts Stripped . | . . . . Power Chain Reactions 1 | . . . 1 Alert | -11 -10 -9 -8 ------- Run | Yrd Mat Mat Mat Peak Influence 132 | . 132 51 119 Initial 51 | . . 51 21 Average 61 | . 80 51 61 Maximum Alert Level . | . . . . Low Security (%) 100 | 100 100 100 100 Level 1 . | . . . . Level 2 . | . . . . Level 3 . | . . . . Level 4 . | . . . . Level 5 . | . . . . High Security . | . . . . Max Security . | . . . . Squads Dispatched 5 | . 3 . 2 Investigation 2 | . 1 . 1 Extermination . | . . . . Reinforcement 3 | . 2 . 1 Assault . | . . . . Garrison . | . . . . Intercept . | . . . . Searches Triggered . | . . . . Construction Impeded . | . . . . Haulers Reinforced . | . . . . Active Scanning Responses . | . . . . Cargo Convoy Interrupts . | . . . . Stealth | -11 -10 -9 -8 --------- Run | Yrd Mat Mat Mat Distress Signals 1 | . 1 . . Communications Jammed . | . . . . Distress Signals . | . . . . Times Spotted 30 | . 12 5 13 Peak Tracking Total 10 | . 4 5 10 Tactical Retreats 2 | . . . 2 Traps | -11 -10 -9 -8 ------- Run | Yrd Mat Mat Mat Traps Triggered 2 | . 1 . 1 Indirectly . | . . . . Trap Hack Attempts . | . . . . Triggered . | . . . . Disarmed . | . . . . Reprogrammed . | . . . . Reused . | . . . . Traps Extracted . | . . . . Installed . | . . . . Triggered . | . . . . Machines | -11 -10 -9 -8 ---------- Run | Yrd Mat Mat Mat Machines Disabled 1 | . . . 1 Max in Single Turn 1 | . . . 1 Machines Repaired . | . . . . Machines Dismantled . | . . . . Machines Sabotaged . | . . . . Overloaded Fab Kills . | . . . . Hacking | -11 -10 -9 -8 --------- Run | Yrd Mat Mat Mat Machines Accessed 2 | . 1 1 . Terminals 2 | . 1 1 . Fabricators . | . . . . Repair Stations . | . . . . Recycling Units . | . . . . Scanalyzers . | . . . . Garrison Access . | . . . . Total Hacks 4 | . 1 3 . Successful 3 | . 1 2 . Failed 1 | . . 1 . Catastrophic . | . . . . Database Lockouts . | . . . . Manual . | . . . . Terminals 4 | . 1 3 . Fabricators . | . . . . Repair Stations . | . . . . Recycling Units . | . . . . Scanalyzers . | . . . . Garrison Access . | . . . . Terminal Hacks 3 | . 1 2 . Alert Level 1 | . 1 . . Locate Traps 1 | . . 1 . Zone Layout 1 | . . 1 . Fabricator Hacks . | . . . . Repair Station Hacks . | . . . . Recycling Unit Hacks . | . . . . Scanalyzer . | . . . . Garrison Access Hacks . | . . . . Unauthorized Hacks . | . . . . Terminals . | . . . . Fabricators . | . . . . Repair Stations . | . . . . Recycling Units . | . . . . Scanalyzers . | . . . . Garrison Access . | . . . . Data Cores Recovered . | . . . . Used . | . . . . Hacking Detections 1 | . 1 . . Full Trace Events . | . . . . Feedback Events . | . . . . Feedback Blocked . | . . . . Robot Schematics Acquired . | . . . . Robots Built . | . . . . Authchips . | . . . . Time . | . . . . Total Robot Build Rating . | . . . . Part Schematics Acquired . | . . . . Parts Built . | . . . . Authchips . | . . . . Time . | . . . . Total Part Build Rating . | . . . . Parts Repaired . | . . . . Time . | . . . . Parts Recycled . | . . . . Recycled Matter . | . . . . Retrieved Matter . | . . . . Retrieved Components . | . . . . Parts Scanalyzed . | . . . . Part Schematics Acquired . | . . . . Parts Damaged . | . . . . Bothacking | -11 -10 -9 -8 ------------ Run | Yrd Mat Mat Mat Used RIF Installer . | . . . . Robots Hacked . | . . . . Non-combat . | . . . . Combat . | . . . . Robot Hacks Applied . | . . . . Relay Couplers Released . | . . . . Fabnet Peak Effective % . | . . . . Robots Rewired . | . . . . Allies Hacked . | . . . . Hacks Repelled . | . . . . Allies | -11 -10 -9 -8 -------- Run | Yrd Mat Mat Mat Total Allies . | . . . . Largest Group . | . . . . Highest-Rated Group . | . . . . Highest-Rated Ally . | . . . . Total Orders . | . . . . Ally Attacks . | . . . . Total Damage . | . . . . Kills . | . . . . Allies Corrupted . | . . . . Allies Melted . | . . . . Intel | -11 -10 -9 -8 ------- Run | Yrd Mat Mat Mat Robot Analysis Total . | . . . . Derelict Logs Recovered . | . . . . Drone Launches . | . . . . Drone Recoveries . | . . . . Exploration | -11 -10 -9 -8 ------------- Run | Yrd Mat Mat Mat Turns Passed 415 | 57 215 53 90 Spaces Moved 462 | 51 145 123 143 Core 29 | 15 . . 14 Treads 65 | . 65 . . Legs . | . . . . Wheels 116 | 36 80 . . Hover . | . . . . Flight 252 | . . 123 129 Fastest Speed 26 | 50 80 26 26 Average Speed 61 | 71 115 26 32 Slowest Speed 160 | 80 160 26 100 Overloaded Moves . | . . . . Propulsion Burnouts . | . . . . Robots Hopped 3 | . . 3 . Cave-ins Triggered . | . . . . Exploration Rate (%) 16 | 3 28 15 19 Regions Visited 3 Branch Regions . Pre-discovered Areas . | . . . . Known Exits Taken . | . . . . Unknown Exits Taken 3 | 1 1 1 . Scrap Searched . | . . . . Spaces Dug 1 | . . . 1 Terrain Destroyed 3 | . . . 3 Melee . | . . . . Projectile 1 | . . . 1 AOE 2 | . . . 2 Terrain Rammed . | . . . . Walls Destroyed . | . . . . Machines Disabled . | . . . . Actions | -11 -10 -9 -8 --------- Run | Yrd Mat Mat Mat Total 555 | 69 176 141 169 Wait 19 | 4 7 7 1 Move 453 | 50 144 116 143 Hop 3 | . . 3 . Pick Up 23 | 9 6 6 2 Fast Attach 9 | 3 . 1 5 Attach 8 | 3 . 3 2 Detach . | . . . . Swap 9 | . 4 2 3 Drop 13 | . 6 3 4 Fire 18 | . 9 . 9 Melee . | . . . . Ram . | . . . . Kick . | . . . . Crush . | . . . . Escape Stasis . | . . . . Rewire . | . . . . Trap . | . . . . Miscellaneous . | . . . . Route ------- -11/Scrapyard -10/Materials -9/Materials (discovered 2 exits: [*Mat] / [*Min]) -8/Materials (discovered 1 exit: [*Fac]) History --------- Turn | Location | Event 14 | -11/Scrapyard | Discovered new exit (range 16) 58 | -11/Scrapyard | Entered Materials 262 | -10/Materials | Discovered new exit (range 9) 273 | -10/Materials | Entered another Materials area 273 | -9/Materials | Evolved 2 slots: Propulsion x2 279 | -9/Materials | Discovered new exit (range 10) 322 | -9/Materials | Discovered new exit (range 15) 326 | -9/Materials | Entered another Materials area 326 | -8/Materials | Evolved 2 slots: Power x1, Utility x1 388 | -8/Materials | Discovered new exit (range 16) 411 | -8/Materials | Core integrity fell below 50% 414 | -8/Materials | Core integrity fell below 20% 416 | -8/Materials | Destroyed by G-47 Trooper with Particle Gun Last Messages --------------- 00395_ Lgt. Ion Engine destroyed. 00395_ Med. Laser destroyed. 00395_ Heat Sink destroyed. 00395_ VTOL Module severed. 00395_ U-05 Engineer builds a Wall. 00396_ Critical hit (Burn: +37). 00398_ Acquired Backup Laser III. 00399_ U-05 Engineer lays Concrete. 00403_ The unstable cave ceiling collapses. 00403_ U-05 Engineer lays Concrete. 00403_ Backup Laser III severed. 00403_ Backup Laser III disintegrated. 00404_ U-05 Engineer lays Concrete. 00404_ Com. Matter Pod destroyed. 00405_ U-05 Engineer lays Concrete. 00410_ Critical hit (Burn: +37). 00413_ Sml. Storage Unit destroyed. 00414_ Critical hit (Burn: +37). 00414_ Acquired Lgt. Nuclear Core. 00415_ Penetrated by Slug. Map ----- +----------------------------------------------------+ | ??????????????????????????????????????????? | | ?????????????????????????????????????????? | | ?????????????????????????????????????????? | | ?????????????????????????????????????????? | | ?????????????????????????????????????????? | | ?????????????????????????????????????????# | | ?????????????????????????????????????????# | | ?????????????????????????????????????????# | | ?????????????????????????????????????????# | | ?????????????????????????????????????????# | | ?????????????????????????????????????????# | | ????????????????????????????????????????## | | ????????????????????????????????????????# | | ????????????????????????????????????????# | | ????????????????????????????????????????# | | ?????????????????????????????############ | | ?????????????????????????????# | | ?????????????????????????????# ########## | | ???????????????????######????# #????# | | ??????????????????##!!!!##???# #????# [ | | ??????????????????#! !#???# #????# | | ??????????????????# ##### #????# "" | | ???????????######## # #????# """ | | ???????????# % c g% #????# """ | | ???????????# < Hc % % g ###??# """ | | ???????????# @ c Y g= ; #??#? "" | | ???????????######+;####### # # ####????### | | ???????????????? ????# |= #????????? | | ??????????????? ????##" "" #????????? | | ?????????????? ????##= *"" #????????? | | ?????????????# ????## [R" #????????? | | ?????????????# ???## """ #????????? | | ?????????????#||| ???## #????????? | | ?????????????#|| ] #??#########????????? | | ?????????????#|| #???????????????????? | | ?????????????# #???????????????????? | | ?????????????##########???????????????????? | | ??????????????????????????????????????????? | | ??????????????????????????????????????????? | | ??????????????????????????????????????????? | | ??????????????????????????????????????????? | | ??????????????????????????????????????????? | | ??????????????????????????????????????????? | | ??????????????????????????????????????????? | | ??????????????????????????????????????????? | | ??????????????????????????????????????????? | | ??????????????????????????????????????????? | | ??????????????????????????????????????????? | | ??????????????????????????????????????????? | | ??????????????????????????????????????????? | +----------------------------------------------------+ Best States ------------- Heat Dissipation 41 Energy Generation 23 Energy Capacity 200 Matter Stores 355 Matter Capacity 450 Sight Range 16 Terrain Scan Density 10 Evasion (%) 64 Recoil Reduction 2 Item Schematics ----------------- None Robot Schematics ------------------ None Fabricated ------------ Nothing Alien Tech Used ----------------- None Achievements -------------- None Challenges ------------ None Game ------ Seed ArchitectSupersonicGun Manual? 0 Play Time 00:12:28 Cumulative 130.3 hours Start 2024.08.22 @ 16:26:02 End 2024.08.22 @ 17:02:32 Sessions 1 Manual Loads 0 Difficulty Rogue Special Mode None Game No. 182 Rogue 182 Adventurer 0 Explorer 0 Win Type - Total 0 Types 0/0/0/0/0/0/0/0/0 Lore% 31 Gallery% 58 Achievement% 39 Wizard Run 0 Options --------- Layout 0 ASCII 0 Keyboard 0 Movement Mouse Keybinds 0 Fullscreen 1 Font 24/Smallcaps Map View 76x50 Zoom Use 0% Tactical HUD 1 Map Filters NONE Filters NONE Steam 1 RUN: 20e6d6cd-a9f9-47c9-bc39-0e53a5e737d4